bitfinex/quotes_SOLUSD_20240708
["timestamp","ask_amount","ask_price","bid_price","bid_amount"]
[1720457082206,15.7284,136.92,136.9,25.5654]
[1720457082510,15.7284,136.92,136.91,7.304]
[1720457082703,15.7284,136.92,136.9,18.2613]
[1720457082704,15.7284,136.92,136.87,18.2645]
[1720457083106,15.7284,136.92,136.9,7.3044]
[1720457084133,15.7284,136.92,136.89,18.2626]
[1720457084323,15.7284,136.92,136.9,7.3044]
[1720457084634,15.7284,136.92,136.89,107.3048]
[1720457084935,15.7284,136.92,136.9,7.3044]
[1720457085226,15.7284,136.92,136.9,25.5655]
[1720457085436,15.7284,136.92,136.91,7.304]
[1720457086932,15.7284,136.92,136.88,18.2641]
[1720457087135,15.7284,136.92,136.86,7.3063]
[1720457087338,15.7284,136.92,136.85,125.5745]
[1720457087515,15.7284,136.92,136.85,118.2673]
[1720457087826,15.7284,136.92,136.85,125.5741]
[1720457088011,15.7284,136.92,136.86,7.3066]
[1720457088627,15.7284,136.92,136.87,18.2652]
[1720457088825,15.7284,136.92,136.83,258.5602]
[1720457089131,22.5407,136.97,136.92,25.5612]
[1720457089323,22.5407,136.97,136.92,18.2578]
[1720457090028,29.8417,136.97,136.89,118.2622]
[1720457090235,20.0,136.96,136.9,7.3045]
[1720457091023,20.0,136.96,136.89,18.2622]
[1720457091024,20.0,136.96,136.91,7.304]
[1720457091421,20.0,136.96,136.9,7.3044]
[1720457092025,20.0,136.96,136.91,7.3038]
[1720457092217,20.0,136.96,136.87,100.0]
[1720457092428,0.34,136.95,136.88,25.5684]
[1720457093312,0.17,136.95,136.89,7.3051]
[1720457093638,0.17,136.95,136.9,25.5658]
[1720457093830,20.0,136.96,136.92,7.3032]
[1720457094916,20.0,136.96,136.92,25.562]
[1720457096419,20.0,136.96,136.93,7.3028]
[1720457096621,22.5407,136.97,136.93,7.3028]
[1720457096934,20.0,136.96,136.93,7.3028]
[1720457097239,20.0,136.96,136.92,25.5621]
[1720457098147,20.0,136.96,136.93,7.3029]
[1720457098528,20.0,136.96,136.92,18.2588]
[1720457098529,20.0,136.96,136.94,7.3023]
[1720457098726,20.0,136.96,136.92,25.5621]
[1720457099133,20.0,136.96,136.93,7.3027]
[1720457100714,16.208,136.97,136.94,25.5581]
[1720457101537,16.208,136.97,136.9,100.0]
[1720457101728,16.208,136.97,136.89,122.02]
[1720457102039,0.17,136.96,136.88,18.2641]
[1720457102244,0.17,136.96,136.85,211.96719081]
[1720457102245,20.0,136.96,136.91,7.3036]
[1720457102423,20.0,136.96,136.89,100.0]
[1720457102620,0.17,136.95,136.88,18.2631]
[1720457102818,0.17,136.95,136.86,100.0]
[1720457102819,0.34,136.95,136.86,100.0]
[1720457103042,23.7939,136.93,136.86,100.0]
[1720457103346,16.4906,136.93,136.87,7.306]
[1720457103511,23.7937,136.93,136.85,18.2669]
[1720457103719,20.17,136.92,136.83,7.3081]
[1720457103918,0.17,136.9,136.83,7.3081]
[1720457104145,20.17,136.9,136.82,118.2714]
[1720457104453,0.17,136.89,136.82,118.2714]
[1720457104744,20.0,136.89,136.84,7.3074]
[1720457104923,0.17,136.9,136.84,7.3074]
[1720457105121,0.34,136.9,136.84,7.3074]
[1720457105317,20.0,136.91,136.87,7.3058]
[1720457105517,20.0,136.92,136.86,18.2667]
[1720457105717,16.4906,136.93,136.91,7.3036]
[1720457106025,16.4906,136.93,136.9,18.2613]
[1720457106236,16.4906,136.93,136.91,7.3038]
[1720457106439,16.4906,136.93,136.9,25.5654]
[1720457106643,16.4906,136.93,136.91,7.304]
[1720457106846,16.4906,136.93,136.9,25.5656]
[1720457107234,16.4906,136.93,136.92,7.3035]
[1720457107827,16.4906,136.93,136.91,7.3038]
[1720457108049,15.3432,136.97,136.94,7.3023]
[1720457108944,15.3432,136.97,136.92,18.2587]
[1720457109129,15.3432,136.97,136.93,7.3026]
[1720457109538,15.3432,136.97,136.94,7.3022]
[1720457109842,15.3432,136.97,136.92,18.2587]
[1720457110023,15.3432,136.97,136.94,18.2558]
[1720457110417,15.3432,136.97,136.93,100.0]
[1720457110418,21.9761,137.01,136.97,7.3008]
[1720457110920,21.9761,137.01,136.96,25.5545]
[1720457111221,21.9761,137.01,136.97,7.3007]
[1720457111419,15.5488,137.01,136.97,7.3007]
[1720457111831,15.5488,137.01,136.98,7.3002]
[1720457112229,15.5488,137.01,136.96,18.2532]
[1720457112425,15.5488,137.01,136.97,7.3004]
[1720457112638,15.5488,137.01,136.96,18.2532]
[1720457112835,15.5488,137.01,136.96,25.5544]
[1720457113347,15.5488,137.01,136.97,7.3006]
[1720457113544,15.5488,137.01,136.96,25.5545]
[1720457114122,15.5488,137.01,136.97,7.3008]
[1720457114326,15.5488,137.01,136.96,18.2532]
[1720457114530,15.5488,137.01,136.98,7.3002]
[1720457115253,15.5488,137.01,136.99,7.2996]
[1720457115637,15.5488,137.01,136.95,18.2537]
[1720457115826,15.5488,137.01,136.96,7.3012]
[1720457116023,15.3719,137.07,137.0,7.2992]
[1720457116229,15.3719,137.07,137.01,7.2987]
[1720457116656,15.3719,137.07,137.02,7.2981]
[1720457116955,15.3719,137.07,136.98,200.0]
[1720457117252,15.3719,137.07,137.05,7.2961]
[1720457117749,0.04339175,137.1,137.05,7.2964]
[1720457118258,0.04339175,137.1,137.06,7.2959]
[1720457118436,0.04339175,137.1,137.06,18.24]
[1720457118952,0.04339175,137.1,137.08,7.2945]
[1720457119137,0.04339175,137.1,137.06,18.24]
[1720457119340,0.04339175,137.1,137.04,7.297]
[1720457119536,0.04339175,137.1,137.0,218.248]
[1720457119859,7.2945,137.09,137.01,25.5441]
[1720457120032,0.04339175,137.1,137.02,7.2981]
[1720457120033,7.33739175,137.1,137.02,7.2981]
[1720457120233,20.0,137.09,137.03,7.2976]
[1720457120467,20.04339175,137.1,137.01,40.2658]
[1720457120625,20.04339175,137.1,137.01,18.2458]
[1720457120823,20.04339175,137.1,137.03,7.2976]
[1720457121024,20.04339175,137.1,137.04,7.2971]
[1720457121428,20.04339175,137.1,137.05,18.2406]
[1720457122228,20.04339175,137.1,137.02,18.2453]
[1720457122432,20.04339175,137.1,137.03,7.2973]
[1720457122766,20.04339175,137.1,137.04,7.297]
[1720457123054,20.04339175,137.1,137.06,7.2959]
[1720457123228,20.04339175,137.1,137.04,0.17]
[1720457123431,20.04339175,137.1,137.07,7.2955]
[1720457123734,0.04339175,137.1,137.07,7.2955]
[1720457124360,0.04339175,137.1,137.06,25.5358]
[1720457124932,20.04339175,137.1,137.06,25.5358]
[1720457125242,20.04339175,137.1,137.07,7.2954]
[1720457126057,20.04339175,137.1,137.06,25.5359]
[1720457126434,20.04339175,137.1,137.07,7.2953]
[1720457126833,0.04339175,137.1,137.09,7.2944]
[1720457127638,0.04339175,137.1,137.08,25.5313]
[1720457127964,0.04339175,137.1,137.08,18.2365]
[1720457128759,16.1627,137.11,137.1,183.29000825]
[1720457128957,36.1627,137.11,137.1,183.29000825]
[1720457129260,43.7961,137.11,137.1,159.78663746]
[1720457129448,36.5027,137.11,137.1,159.78663746]
[1720457129840,43.7961,137.11,137.1,136.8496367]
[1720457130038,36.5027,137.11,137.1,136.8496367]
[1720457130359,36.5027,137.11,137.1,114.8496367]
[1720457130558,36.3327,137.11,137.1,114.8496367]
[1720457130855,16.1627,137.11,137.1,114.8496367]
[1720457131833,7.86804503,137.16,137.1,114.8496367]
[1720457132144,7.86804503,137.21,137.1,114.8496367]
[1720457132358,7.86804503,137.21,137.11,25.5253]
[1720457132359,7.2894,137.19,137.11,25.5253]
[1720457132656,7.2898,137.18,137.11,18.2325]
[1720457132852,7.2903,137.17,137.1,114.8496367]
[1720457133053,21.2945,137.16,137.1,114.8496367]
[1720457133234,21.2945,137.16,137.1,133.0841367]
[1720457133433,21.2945,137.16,137.1,140.3778367]
[1720457134048,21.2945,137.16,137.11,7.2933]
[1720457134261,20.0,137.15,137.11,7.2933]
[1720457134429,20.0,137.15,137.1,133.0841367]
[1720457134629,20.0,137.15,137.11,7.2931]
[1720457137460,15.4969,137.23,137.17,7.2901]
[1720457137655,15.4969,137.23,137.16,25.5164]
[1720457137840,20.0,137.22,137.15,7.2911]
[1720457138040,27.2876,137.22,137.15,7.2912]
[1720457138235,20.0,137.22,137.16,7.2905]
[1720457138455,20.0,137.22,137.17,18.2253]
[1720457138867,20.0,137.22,137.16,7.2906]
[1720457139065,20.0,137.22,137.17,7.2901]
[1720457139244,7.62715487,137.25,137.24,7.2865]
[1720457139456,7.2827,137.31,137.24,7.2864]
[1720457139663,0.8627342,137.33,137.23,18.2166]
[1720457139664,6.64112558,137.33,137.23,18.2166]
[1720457139973,6.64112558,137.33,137.23,118.2166]
[1720457140461,7.2823,137.32,137.23,118.2166]
[1720457140785,7.2824,137.32,137.24,7.2864]
[1720457141481,7.2824,137.32,137.19,25.5115]
[1720457141482,7.2852,137.27,137.19,25.5115]
[1720457141645,7.2842,137.29,137.2,7.2882]
[1720457141844,0.17,137.3,137.2,7.2884]
[1720457141845,7.2844,137.28,137.2,7.2884]
[1720457142060,20.0,137.27,137.19,18.2225]
[1720457142478,20.0,137.29,137.21,18.219]
[1720457142773,24.91,137.31,137.18,118.2234]
[1720457142955,7.2849,137.27,137.19,7.2887]
[1720457143161,20.0,137.26,137.18,118.2234]
[1720457143358,20.0,137.26,137.18,18.2234]
[1720457143671,20.0,137.26,137.19,7.2887]
[1720457143983,27.4552,137.27,137.19,7.289]
[1720457144192,20.0,137.27,137.2,18.2211]
[1720457144351,20.0,137.27,137.22,7.2875]
[1720457144865,20.0,137.27,137.21,107.2879]
[1720457145175,20.0,137.27,137.19,100.0]
[1720457145386,7.2854,137.26,137.17,24.3345]
[1720457145672,7.2866,137.24,137.16,107.2906]
[1720457145886,20.0,137.25,137.17,7.2901]
[1720457145887,20.0,137.23,137.17,7.2901]
[1720457146059,27.2861,137.25,137.17,7.2901]
[1720457146467,7.4566,137.24,137.16,125.5171]
[1720457146785,20.0,137.23,137.17,7.2901]
[1720457147074,20.0,137.23,137.17,7.2898]
[1720457147280,27.2865,137.24,137.16,118.2265]
[1720457147450,20.0,137.24,137.18,7.2896]
[1720457147655,20.0,137.24,137.16,100.0]
[1720457147966,0.17,137.23,137.13,106.6497]
[1720457148173,0.34,137.23,137.13,113.9415]
[1720457148354,0.17,137.23,137.13,206.6497]
[1720457148573,7.2863,137.25,137.17,7.2898]
[1720457148765,20.0,137.24,137.16,18.2258]
[1720457148966,20.0,137.24,137.16,118.2258]
[1720457149281,5.99218055,137.26,137.16,18.2258]
[1720457149468,20.0,137.25,137.16,18.2258]
[1720457149684,7.2866,137.24,137.16,18.2258]
[1720457149862,20.0,137.23,137.16,18.2258]
[1720457150176,20.0,137.23,137.17,7.2899]
[1720457150390,20.0,137.23,137.18,7.2895]
[1720457150689,20.0,137.25,137.15,100.0]
[1720457150845,0.34,137.24,137.15,107.2908]
[1720457151051,7.2871,137.23,137.13,24.8799]
[1720457151282,7.2893,137.19,137.1,214.8496367]
[1720457151510,20.0,137.18,137.1,114.8496367]
[1720457151703,20.0,137.18,137.1,122.1431367]
[1720457151877,20.0,137.18,137.1,114.8496367]
[1720457152079,0.17,137.17,137.1,114.8496367]
[1720457152282,20.0,137.18,137.12,7.2924]
[1720457152487,20.0,137.18,137.13,7.2922]
[1720457152786,20.0,137.18,137.1,114.8496367]
[1720457152988,27.29,137.18,137.1,140.3777367]
[1720457153205,7.2905,137.17,137.1,114.8496367]
[1720457153505,20.0,137.16,137.1,114.8496367]
[1720457153710,20.0,137.18,137.1,114.8496367]
[1720457153914,20.0,137.18,137.11,7.2933]
[1720457154206,20.0,137.18,137.13,7.2918]
[1720457154413,15.8948,137.24,137.18,100.0]
[1720457154719,15.8948,137.24,137.2,7.2886]
[1720457154878,19.0679342,137.33,137.2,7.2886]
[1720457154879,7.619438,137.32,137.22,7.2874]
[1720457155101,22.2798342,137.33,137.22,18.2179]
[1720457155283,7.2838,137.3,137.22,18.2179]
[1720457155511,7.2847,137.28,137.2,7.2885]
[1720457155810,18.2061,137.32,137.19,18.2226]
[1720457155987,7.2853,137.27,137.19,25.5117]
[1720457156310,8.65684873,137.32,137.19,100.0]
[1720457156610,8.65684873,137.32,137.21,200.0]
[1720457156783,28.13820647,137.33,137.21,200.0]
[1720457156987,7.2828,137.31,137.24,18.2156]
[1720457157918,50.15820647,137.33,137.17,100.0]
[1720457158085,50.15820647,137.33,137.18,18.2239]
[1720457158086,8.65684873,137.31,137.18,18.2239]
[1720457158281,7.2845,137.28,137.19,7.2886]
[1720457158503,20.0,137.27,137.19,7.2886]
[1720457158783,27.285,137.27,137.19,7.2886]
[1720457158994,20.0,137.27,137.2,7.2883]
[1720457159498,20.0,137.27,137.19,7.2891]
[1720457159707,7.6245,137.28,137.2,7.2885]
[1720457159891,20.17,137.27,137.2,7.2885]
[1720457160088,20.17,137.27,137.17,100.0]
[1720457160295,20.0,137.27,137.2,18.221]
[1720457160491,27.2838,137.3,137.22,7.2875]
[1720457160807,7.2852,137.27,137.19,7.2889]
[1720457161002,20.0,137.26,137.17,218.2249]
[1720457161210,20.0,137.3,137.17,218.2249]
[1720457161393,7.285,137.27,137.19,7.289]
[1720457161588,20.17,137.26,137.17,200.0]
[1720457161793,20.0,137.26,137.17,200.0]
[1720457162317,0.17,137.26,137.13,100.0]
[1720457162492,13.865,137.21,137.13,7.2922]
[1720457162816,7.2892,137.19,137.12,18.2318]
[1720457163013,20.0,137.2,137.12,18.2318]
[1720457163211,20.0,137.2,137.13,7.2919]
[1720457163623,7.4593,137.19,137.12,18.2318]
[1720457163812,0.17,137.18,137.12,18.2318]
[1720457164021,7.2902,137.17,137.1,114.8496367]
[1720457164197,20.0,137.16,137.1,114.8496367]
[1720457164510,15.2019,137.15,137.1,114.8496367]
[1720457164696,20.0,137.14,137.1,114.8496367]
[1720457165299,8.65684873,137.19,137.1,136.8696367]
[1720457165503,15.2019,137.2,137.14,7.2914]
[1720457165694,15.2019,137.2,137.1,214.8496367]
[1720457165695,21.04569563,137.2,137.13,18.2305]
[1720457165894,15.2019,137.2,137.16,7.2906]
[1720457166124,5.74803423,137.23,137.17,7.29]
[1720457166294,15.2753,137.24,137.17,25.5148]
[1720457166492,22.5621,137.24,137.16,7.2902]
[1720457166854,7.2889,137.2,137.13,100.0]
[1720457167116,7.2882,137.21,137.14,7.2917]
[1720457167307,22.5622,137.24,137.16,7.2907]
[1720457167496,15.2753,137.24,137.17,7.2898]
[1720457167699,15.2753,137.24,137.15,222.02]
[1720457167910,15.2753,137.24,137.18,7.2893]
[1720457168117,15.2753,137.24,137.19,7.2891]
[1720457168317,5.96481925,137.28,137.21,7.2877]
[1720457168491,7.2844,137.28,137.21,7.2877]
[1720457168699,7.2844,137.28,137.2,7.2882]
[1720457168893,23.99024873,137.29,137.21,7.2879]
[1720457168894,31.27424873,137.29,137.21,7.2879]
[1720457169098,21.13737889,137.29,137.19,18.2223]
[1720457169498,7.2843,137.28,137.21,18.2196]
[1720457170302,21.13737889,137.29,137.21,18.2196]
[1720457170498,7.2844,137.28,137.21,18.2196]
[1720457170810,20.0,137.27,137.21,18.2196]
[1720457171225,7.2855,137.26,137.18,18.2236]
[1720457171516,20.0,137.25,137.18,18.2236]
[1720457171718,20.0,137.27,137.15,218.2271]
[1720457171902,7.2861,137.25,137.17,7.2898]
[1720457172101,27.2865,137.24,137.17,7.2898]
[1720457172307,20.0,137.23,137.17,7.2898]
[1720457172509,20.0,137.23,137.17,18.2247]
[1720457172709,20.0,137.23,137.17,25.5148]
[1720457172936,20.0,137.24,137.14,18.2284]
[1720457173106,18.2117,137.28,137.13,200.0]
[1720457173107,7.2861,137.25,137.17,7.2899]
[1720457173421,20.0,137.24,137.18,7.2896]
[1720457173608,20.0,137.24,137.17,7.29]
[1720457174602,20.0,137.24,137.16,25.5166]
[1720457174801,20.0,137.24,137.13,200.0]
[1720457174802,15.1715,137.22,137.13,100.0]
[1720457175001,15.1715,137.22,137.12,18.231]
[1720457175002,20.0,137.21,137.12,18.231]
[1720457175197,20.0,137.21,137.12,125.5234]
[1720457175400,0.17,137.2,137.1,114.8496367]
[1720457175596,7.2892,137.19,137.11,7.2929]
[1720457175802,20.0,137.18,137.12,7.2927]
[1720457176015,21.558,137.22,137.14,100.0]
[1720457176221,20.0,137.21,137.17,7.2901]
[1720457176426,27.2881,137.21,137.12,100.0]
[1720457176699,7.2886,137.2,137.13,25.5221]
[1720457176925,20.0,137.21,137.11,7.2932]
[1720457176926,27.2893,137.19,137.11,7.2932]
[1720457177233,27.2897,137.18,137.11,7.2932]
[1720457177442,0.17,137.2,137.1,140.3769367]
[1720457177443,0.34,137.2,137.1,140.3769367]
[1720457177731,7.2902,137.17,137.1,114.8496367]
[1720457177936,20.0,137.16,137.1,114.8496367]
[1720457178228,16.0768,137.14,137.1,114.8496367]
[1720457178415,20.0,137.13,137.1,114.8496367]
[1720457179319,16.4964,137.18,137.1,114.8496367]
[1720457179516,20.0,137.17,137.1,114.8496367]
[1720457179719,0.34,137.16,137.1,114.8496367]
[1720457180231,7.293,137.12,137.1,114.8496367]
[1720457180538,27.2934,137.11,137.1,114.8496367]
[1720457181859,27.4634,137.11,137.1,110.09610813]
[1720457181999,20.17,137.11,137.1,110.09610813]
[1720457182330,27.4634,137.11,137.1,110.09610813]
[1720457182669,20.0,137.11,137.1,110.09610813]
[1720457183336,7.2926,137.13,137.1,110.09610813]
[1720457183537,18.3979,137.16,137.1,110.09610813]
[1720457183703,7.2931,137.12,137.1,110.09610813]
[1720457183903,0.17,137.15,137.1,110.09610813]
[1720457184113,7.2934,137.11,137.1,110.09610813]
[1720457184529,43.7448,137.11,137.1,110.09610813]
[1720457184718,43.7448,137.11,137.1,107.90332825]
[1720457185025,36.4514,137.11,137.1,105.71054837]
[1720457185928,22.28521382,137.16,137.1,105.71054837]
[1720457186127,29.57591382,137.16,137.1,105.71054837]
[1720457186328,16.5251,137.16,137.1,105.71054837]
[1720457186509,16.5251,137.16,137.1,113.00434837]
[1720457186702,23.8159,137.16,137.1,105.71054837]
[1720457187430,7.2913,137.15,137.1,105.71054837]
[1720457188007,7.2918,137.14,137.1,105.71054837]
[1720457188222,0.17,137.15,137.1,105.71054837]
[1720457188505,0.34,137.15,137.1,105.71054837]
[1720457188712,7.2924,137.13,137.1,105.71054837]
[1720457189114,20.0,137.12,137.1,105.71054837]
[1720457189312,20.0,137.15,137.1,105.71054837]
[1720457189941,27.2913,137.15,137.1,105.71054837]
[1720457190435,7.2918,137.14,137.1,105.71054837]
[1720457190635,20.0,137.15,137.1,105.71054837]
[1720457190636,27.2925,137.13,137.1,105.71054837]
[1720457190933,7.293,137.12,137.1,105.71054837]
[1720457191139,20.0,137.11,137.1,105.71054837]
[1720457192142,0.17,137.14,137.1,105.71054837]
[1720457192663,20.34,137.15,137.1,105.71054837]
[1720457192854,16.5251,137.16,137.1,105.71054837]
[1720457193344,16.5251,137.16,137.1,113.00414837]
[1720457193523,16.5251,137.16,137.1,105.71054837]
[1720457194245,20.0,137.15,137.1,105.71054837]
[1720457195317,27.2913,137.15,137.1,105.71054837]
[1720457195838,7.2922,137.14,137.1,105.71054837]
[1720457196149,27.2923,137.13,137.1,105.71054837]
[1720457196346,20.0,137.13,137.1,105.71054837]
[1720457196563,7.2933,137.12,137.1,105.71054837]
[1720457196754,20.0,137.11,137.1,105.71054837]
[1720457197329,27.2934,137.11,137.1,105.71054837]
[1720457198328,20.0,137.11,137.1,105.71054837]
[1720457200730,5.87018495,137.17,137.1,105.71054837]
[1720457200930,7.2898,137.18,137.1,131.23844837]
[1720457201144,21.8869,137.19,137.1,131.23844837]
[1720457201865,21.8869,137.19,137.1,105.71054837]
[1720457202174,20.0,137.18,137.1,105.71054837]
[1720457202372,7.2904,137.17,137.1,113.00434837]
[1720457202561,20.0,137.16,137.1,113.00434837]
[1720457202871,20.0,137.16,137.1,105.71054837]
[1720457203031,27.2909,137.16,137.1,105.71054837]
[1720457204383,20.0,137.16,137.1,105.71054837]
[1720457205076,5.87782536,137.19,137.11,121.91]
[1720457205287,280.22714105,137.21,137.11,121.91]
[1720457205288,278.57855833,137.21,137.12,121.91]
[1720457205449,5.95366457,137.21,137.16,7.2904]
[1720457205649,16.6308,137.23,137.17,7.2901]
[1720457205842,7.2866,137.24,137.16,25.517]
[1720457206663,20.0,137.23,137.17,7.29]
[1720457206844,27.287,137.23,137.16,18.2265]
[1720457207045,20.0,137.23,137.16,25.517]
[1720457207451,13.03663384,137.24,137.16,25.517]
[1720457207696,7.287,137.23,137.16,25.517]
[1720457208173,16.52489376,137.25,137.13,33.6829]
[1720457208375,26.42464503,137.24,137.13,40.9751]
[1720457208545,7.2885,137.21,137.13,40.9751]
[1720457208745,26.42464503,137.24,137.13,40.9751]
[1720457208746,27.2886,137.2,137.13,40.9751]
[1720457208939,20.0,137.2,137.13,40.9751]
[1720457209140,20.0,137.2,137.15,18.2276]
[1720457209460,20.0,137.22,137.15,25.5188]
[1720457209771,20.0,137.22,137.16,7.2906]
[1720457209958,0.17,137.21,137.15,25.5188]
[1720457210173,20.0,137.22,137.15,25.5188]
[1720457210338,27.2875,137.22,137.15,25.5188]
[1720457210540,7.2884,137.21,137.14,7.2916]
[1720457210762,20.0,137.2,137.14,7.2916]
[1720457210969,20.0,137.2,137.14,25.521]
[1720457211480,0.34,137.23,137.14,18.2294]
[1720457211481,27.2883,137.21,137.14,18.2294]
[1720457211686,20.0,137.21,137.13,115.453]
[1720457211860,27.2876,137.22,137.13,233.6837]
[1720457212176,27.2876,137.22,137.15,7.2907]
[1720457212177,20.0,137.22,137.15,7.2907]
[1720457212361,7.4571,137.23,137.15,25.5188]
[1720457212579,20.17,137.22,137.16,7.2906]
[1720457213380,27.4576,137.22,137.15,18.2281]
[1720457213590,20.0,137.22,137.17,18.2253]
[1720457213882,18.2101,137.29,137.17,18.2253]
[1720457213883,20.0,137.24,137.17,18.2253]
[1720457214059,7.286,137.25,137.18,7.2894]
[1720457214265,20.0,137.24,137.17,25.5154]
[1720457214459,27.2866,137.24,137.17,18.2253]
[1720457214656,27.2866,137.24,137.17,25.5154]
[1720457214968,27.2866,137.24,137.16,13.8222]
[1720457214969,7.2871,137.23,137.16,13.8222]
[1720457215159,20.0,137.22,137.16,13.8222]
[1720457215678,20.0,137.22,137.16,6.5316]
[1720457216051,20.0,137.22,137.17,7.2902]
[1720457216251,20.0,137.23,137.17,7.2902]
[1720457216758,27.2873,137.23,137.16,32.0489]
[1720457216978,7.4579,137.22,137.16,6.5316]
[1720457217162,20.17,137.21,137.15,7.2912]
[1720457217580,20.17,137.21,137.14,7.2916]
[1720457217776,20.17,137.21,137.15,7.2912]
[1720457217986,20.17,137.21,137.13,18.2297]
[1720457218147,20.17,137.21,137.12,6.0841]
[1720457218148,0.17,137.21,137.12,6.0841]
[1720457218352,20.0,137.2,137.12,6.0841]
[1720457218552,0.17,137.21,137.12,6.0841]
[1720457218791,0.17,137.21,137.12,24.3159]
[1720457218988,15.3503,137.2,137.1,105.71054837]
[1720457219181,7.2897,137.18,137.11,7.2933]
[1720457219386,20.0,137.17,137.12,7.2928]
[1720457219590,7.2898,137.18,137.11,25.5263]
[1720457219878,20.0,137.17,137.11,25.5263]
[1720457220259,27.2898,137.18,137.11,25.5263]
[1720457220460,27.2898,137.18,137.11,25.5264]
[1720457220676,27.2899,137.18,137.1,113.00414837]
[1720457220870,0.17,137.17,137.1,113.00414837]
[1720457221053,0.17,137.17,137.1,131.23894837]
[1720457221489,7.4603,137.17,137.1,131.23894837]
[1720457221796,20.0,137.16,137.1,131.23894837]
[1720457222279,20.17,137.17,137.1,131.23894837]
[1720457223068,0.17,137.16,137.1,105.71054837]
[1720457223282,7.2925,137.13,137.1,105.71054837]
[1720457223462,27.4629,137.12,137.1,105.71054837]
[1720457223887,20.17,137.12,137.1,105.71054837]
[1720457224190,27.4629,137.12,137.1,105.71054837]
[1720457224393,20.17,137.12,137.1,105.71054837]
[1720457224694,20.0,137.12,137.1,105.71054837]
[1720457225001,20.0,137.14,137.1,105.71054837]
[1720457225680,7.2918,137.14,137.1,105.71054837]
[1720457225862,20.0,137.13,137.1,105.71054837]
[1720457226058,20.0,137.17,137.1,105.71054837]
[1720457226059,7.2918,137.14,137.1,105.71054837]
[1720457226275,20.0,137.13,137.1,105.71054837]
[1720457226498,7.2934,137.11,137.1,105.71054837]
[1720457226664,27.2934,137.11,137.1,105.71054837]
[1720457226864,20.0,137.11,137.1,105.71054837]
[1720457227091,27.2934,137.11,137.1,105.71054837]
[1720457227290,27.4634,137.11,137.1,105.71054837]
[1720457228014,20.17,137.11,137.1,105.71054837]
[1720457229865,27.6334,137.11,137.1,105.71054837]
[1720457230074,27.4634,137.11,137.1,105.71054837]
[1720457231563,27.6334,137.11,137.1,105.71054837]
[1720457232189,27.4634,137.11,137.1,105.71054837]
[1720457232571,27.6334,137.11,137.1,105.71054837]
[1720457232983,20.17,137.11,137.1,105.71054837]
[1720457233302,20.0,137.11,137.1,105.71054837]
[1720457233812,27.2934,137.11,137.1,105.71054837]
[1720457234392,27.4634,137.11,137.1,105.71054837]
[1720457234711,27.6334,137.11,137.1,105.71054837]
[1720457235092,20.0,137.11,137.1,105.71054837]
[1720457235405,27.4634,137.11,137.1,105.71054837]
[1720457235730,27.4634,137.11,137.1,86.5148908]
[1720457235731,36.63041539,137.11,137.1,86.5148908]
[1720457235875,36.63041539,137.11,137.1,23.63845423]
[1720457236313,36.63041539,137.11,137.1,21.44535381]
[1720457236810,36.63041539,137.11,137.1,19.25235381]
[1720457237109,36.63041539,137.11,137.1,17.05935381]
[1720457237308,9.96502764,137.1,136.98,6.6078]
[1720457237518,7.2971,137.05,136.98,6.6078]
[1720457237692,0.17,137.07,136.98,13.908]